{"text_format":"1","workbook":"xlsx","n_sheets":2,"sheets":["osn (3)","tehn"],"not_rendered":{"charts":0,"images":0,"macros":1,"external_links":0,"defined_names":2,"comments":0,"pivot_tables":0},"unopened":[],"bounds":{"document_bytes":16777216,"sheet_cells":100000,"rows_first":2000,"rows_last":500,"rows_between":2000,"halvings":0,"cell_chars":16384,"cell_head_chars":4096},"cells_cut":0,"cells_raw":0,"read":"whole","date_system":"1900"}

{"sheet":"osn (3)","index":0,"n_rows":404,"n_cols":8,"rows_kept":404,"cut":false,"hidden":false,"merged":[]}
["Неделя","Дата","Менеджер","Регион","Предприятие","Продукт","Статус","Кол-во"]
[]
[]
[]
[null," "]
[]
["Неделя","Дата","Менеджер","Регион","Предприятие","Продукт","Статус","Кол-во"]
[{"$f":"_xlfn.ISOWEEKNUM(Зразки_унів_фільтр[[#This Row],[Дата]])","v":1},"2017-01-02","Иванов","Винницкая","Агропродукт","Абрикос","Выполнено",2]
[{"$f":"_xlfn.ISOWEEKNUM(Зразки_унів_фільтр[[#This Row],[Дата]])","v":1},"2017-01-04","Петров","Днепропетровская","ЖЗИ","Банан","Выполнено",1]
[{"$f":"_xlfn.ISOWEEKNUM(Зразки_унів_фільтр[[#This Row],[Дата]])","v":1},"2017-01-04","Сидоров","Винницкая","ЖЗИ","Слива","Выполнено",1]
[{"$f":"_xlfn.ISOWEEKNUM(Зразки_унів_фільтр[[#This Row],[Дата]])","v":1},"2017-01-04","Сидоров","Винницкая","ЖЗИ","Виноград","Выполнено",1]
[{"$f":"_xlfn.ISOWEEKNUM(Зразки_унів_фільтр[[#This Row],[Дата]])","v":1},"2017-01-05","Сидоров","Винницкая","ЖЗИ","Картофель","Выполнено",1]
[{"$f":"_xlfn.ISOWEEKNUM(Зразки_унів_фільтр[[#This Row],[Дата]])","v":1},"2017-01-05","Николаев","Черкасская","Агроконсалтинг","Помидор","Выполнено",1]
[{"$f":"_xlfn.ISOWEEKNUM(Зразки_унів_фільтр[[#This Row],[Дата]])","v":1},"2017-01-05","Николаев","Черкасская","Агроконсалтинг","Картофель","Выполнено",1]
[{"$f":"_xlfn.ISOWEEKNUM(Зразки_унів_фільтр[[#This Row],[Дата]])","v":1},"2017-01-05","Николаев","Черкасская","Агроконсалтинг","Морковь","Выполнено",1]
[{"$f":"_xlfn.ISOWEEKNUM(Зразки_унів_фільтр[[#This Row],[Дата]])","v":1},"2017-01-06","Николаев","Черкасская","Агроконсалтинг","Банан","Выполнено",4]
[{"$f":"_xlfn.ISOWEEKNUM(Зразки_унів_фільтр[[#This Row],[Дата]])","v":1},"2017-01-06","Николаев","Черкасская","Агроконсалтинг","Слива","Выполнено",1]
[{"$f":"_xlfn.ISOWEEKNUM(Зразки_унів_фільтр[[#This Row],[Дата]])","v":1},"2017-01-06","Николаев","Черкасская","Агроконсалтинг","Вишня","Выполнено",2]
[{"$f":"_xlfn.ISOWEEKNUM(Зразки_унів_фільтр[[#This Row],[Дата]])","v":2},"2017-01-09"]
[{"$f":"_xlfn.ISOWEEKNUM(Зразки_унів_фільтр[[#This Row],[Дата]])","v":2},"2017-01-10"]
[{"$f":"_xlfn.ISOWEEKNUM(Зразки_унів_фільтр[[#This Row],[Дата]])","v":2},"2017-01-11"]
[{"$f":"_xlfn.ISOWEEKNUM(Зразки_унів_фільтр[[#This Row],[Дата]])","v":2},"2017-01-12"]
[{"$f":"_xlfn.ISOWEEKNUM(Зразки_унів_фільтр[[#This Row],[Дата]])","v":2},"2017-01-13"]
[{"$f":"_xlfn.ISOWEEKNUM(Зразки_унів_фільтр[[#This Row],[Дата]])","v":2},"2017-01-14"]
[{"$f":"_xlfn.ISOWEEKNUM(Зразки_унів_фільтр[[#This Row],[Дата]])","v":2},"2017-01-15"]
[{"$f":"_xlfn.ISOWEEKNUM(Зразки_унів_фільтр[[#This Row],[Дата]])","v":3},"2017-01-16"]
[{"$f":"_xlfn.ISOWEEKNUM(Зразки_унів_фільтр[[#This Row],[Дата]])","v":3},"2017-01-17"]
[{"$f":"_xlfn.ISOWEEKNUM(Зразки_унів_фільтр[[#This Row],[Дата]])","v":3},"2017-01-18"]
[{"$f":"_xlfn.ISOWEEKNUM(Зразки_унів_фільтр[[#This Row],[Дата]])","v":3},"2017-01-19"]
[{"$f":"_xlfn.ISOWEEKNUM(Зразки_унів_фільтр[[#This Row],[Дата]])","v":3},"2017-01-20"]
[{"$f":"_xlfn.ISOWEEKNUM(Зразки_унів_фільтр[[#This Row],[Дата]])","v":3},"2017-01-21"]
[{"$f":"_xlfn.ISOWEEKNUM(Зразки_унів_фільтр[[#This Row],[Дата]])","v":3},"2017-01-22"]
[{"$f":"_xlfn.ISOWEEKNUM(Зразки_унів_фільтр[[#This Row],[Дата]])","v":4},"2017-01-23"]
[{"$f":"_xlfn.ISOWEEKNUM(Зразки_унів_фільтр[[#This Row],[Дата]])","v":4},"2017-01-24"]
[{"$f":"_xlfn.ISOWEEKNUM(Зразки_унів_фільтр[[#This Row],[Дата]])","v":4},"2017-01-25"]
[{"$f":"_xlfn.ISOWEEKNUM(Зразки_унів_фільтр[[#This Row],[Дата]])","v":4},"2017-01-26"]
[{"$f":"_xlfn.ISOWEEKNUM(Зразки_унів_фільтр[[#This Row],[Дата]])","v":4},"2017-01-27"]
[{"$f":"_xlfn.ISOWEEKNUM(Зразки_унів_фільтр[[#This Row],[Дата]])","v":4},"2017-01-28"]
[{"$f":"_xlfn.ISOWEEKNUM(Зразки_унів_фільтр[[#This Row],[Дата]])","v":4},"2017-01-29"]
[{"$f":"_xlfn.ISOWEEKNUM(Зразки_унів_фільтр[[#This Row],[Дата]])","v":5},"2017-01-30"]
[{"$f":"_xlfn.ISOWEEKNUM(Зразки_унів_фільтр[[#This Row],[Дата]])","v":5},"2017-01-31"]
[{"$f":"_xlfn.ISOWEEKNUM(Зразки_унів_фільтр[[#This Row],[Дата]])","v":5},"2017-02-01"]
[{"$f":"_xlfn.ISOWEEKNUM(Зразки_унів_фільтр[[#This Row],[Дата]])","v":5},"2017-02-02"]
[{"$f":"_xlfn.ISOWEEKNUM(Зразки_унів_фільтр[[#This Row],[Дата]])","v":5},"2017-02-03"]
[{"$f":"_xlfn.ISOWEEKNUM(Зразки_унів_фільтр[[#This Row],[Дата]])","v":5},"2017-02-04"]
[{"$f":"_xlfn.ISOWEEKNUM(Зразки_унів_фільтр[[#This Row],[Дата]])","v":5},"2017-02-05"]
[{"$f":"_xlfn.ISOWEEKNUM(Зразки_унів_фільтр[[#This Row],[Дата]])","v":6},"2017-02-06"]
[{"$f":"_xlfn.ISOWEEKNUM(Зразки_унів_фільтр[[#This Row],[Дата]])","v":6},"2017-02-07"]
[{"$f":"_xlfn.ISOWEEKNUM(Зразки_унів_фільтр[[#This Row],[Дата]])","v":6},"2017-02-08"]
[{"$f":"_xlfn.ISOWEEKNUM(Зразки_унів_фільтр[[#This Row],[Дата]])","v":6},"2017-02-09"]
[{"$f":"_xlfn.ISOWEEKNUM(Зразки_унів_фільтр[[#This Row],[Дата]])","v":6},"2017-02-10"]
[{"$f":"_xlfn.ISOWEEKNUM(Зразки_унів_фільтр[[#This Row],[Дата]])","v":6},"2017-02-11"]
[{"$f":"_xlfn.ISOWEEKNUM(Зразки_унів_фільтр[[#This Row],[Дата]])","v":6},"2017-02-12"]
[{"$f":"_xlfn.ISOWEEKNUM(Зразки_унів_фільтр[[#This Row],[Дата]])","v":7},"2017-02-13"]
[{"$f":"_xlfn.ISOWEEKNUM(Зразки_унів_фільтр[[#This Row],[Дата]])","v":7},"2017-02-14"]
[{"$f":"_xlfn.ISOWEEKNUM(Зразки_унів_фільтр[[#This Row],[Дата]])","v":7},"2017-02-15"]
[{"$f":"_xlfn.ISOWEEKNUM(Зразки_унів_фільтр[[#This Row],[Дата]])","v":7},"2017-02-16"]
[{"$f":"_xlfn.ISOWEEKNUM(Зразки_унів_фільтр[[#This Row],[Дата]])","v":7},"2017-02-17"]
[{"$f":"_xlfn.ISOWEEKNUM(Зразки_унів_фільтр[[#This Row],[Дата]])","v":7},"2017-02-18"]
[{"$f":"_xlfn.ISOWEEKNUM(Зразки_унів_фільтр[[#This Row],[Дата]])","v":7},"2017-02-19"]
[{"$f":"_xlfn.ISOWEEKNUM(Зразки_унів_фільтр[[#This Row],[Дата]])","v":8},"2017-02-20"]
[{"$f":"_xlfn.ISOWEEKNUM(Зразки_унів_фільтр[[#This Row],[Дата]])","v":8},"2017-02-21"]
[{"$f":"_xlfn.ISOWEEKNUM(Зразки_унів_фільтр[[#This Row],[Дата]])","v":8},"2017-02-22"]
[{"$f":"_xlfn.ISOWEEKNUM(Зразки_унів_фільтр[[#This Row],[Дата]])","v":8},"2017-02-23"]
[{"$f":"_xlfn.ISOWEEKNUM(Зразки_унів_фільтр[[#This Row],[Дата]])","v":8},"2017-02-24"]
[{"$f":"_xlfn.ISOWEEKNUM(Зразки_унів_фільтр[[#This Row],[Дата]])","v":8},"2017-02-25"]
[{"$f":"_xlfn.ISOWEEKNUM(Зразки_унів_фільтр[[#This Row],[Дата]])","v":8},"2017-02-26"]
[{"$f":"_xlfn.ISOWEEKNUM(Зразки_унів_фільтр[[#This Row],[Дата]])","v":9},"2017-02-27"]
[{"$f":"_xlfn.ISOWEEKNUM(Зразки_унів_фільтр[[#This Row],[Дата]])","v":9},"2017-02-28"]
[{"$f":"_xlfn.ISOWEEKNUM(Зразки_унів_фільтр[[#This Row],[Дата]])","v":9},"2017-03-01"]
[{"$f":"_xlfn.ISOWEEKNUM(Зразки_унів_фільтр[[#This Row],[Дата]])","v":9},"2017-03-02"]
[{"$f":"_xlfn.ISOWEEKNUM(Зразки_унів_фільтр[[#This Row],[Дата]])","v":9},"2017-03-03"]
[{"$f":"_xlfn.ISOWEEKNUM(Зразки_унів_фільтр[[#This Row],[Дата]])","v":9},"2017-03-04"]
[{"$f":"_xlfn.ISOWEEKNUM(Зразки_унів_фільтр[[#This Row],[Дата]])","v":9},"2017-03-05"]
[{"$f":"_xlfn.ISOWEEKNUM(Зразки_унів_фільтр[[#This Row],[Дата]])","v":10},"2017-03-06"]
[{"$f":"_xlfn.ISOWEEKNUM(Зразки_унів_фільтр[[#This Row],[Дата]])","v":10},"2017-03-07"]
[{"$f":"_xlfn.ISOWEEKNUM(Зразки_унів_фільтр[[#This Row],[Дата]])","v":10},"2017-03-08"]
[{"$f":"_xlfn.ISOWEEKNUM(Зразки_унів_фільтр[[#This Row],[Дата]])","v":10},"2017-03-09"]
[{"$f":"_xlfn.ISOWEEKNUM(Зразки_унів_фільтр[[#This Row],[Дата]])","v":10},"2017-03-10"]
[{"$f":"_xlfn.ISOWEEKNUM(Зразки_унів_фільтр[[#This Row],[Дата]])","v":10},"2017-03-11"]
[{"$f":"_xlfn.ISOWEEKNUM(Зразки_унів_фільтр[[#This Row],[Дата]])","v":10},"2017-03-12"]
[{"$f":"_xlfn.ISOWEEKNUM(Зразки_унів_фільтр[[#This Row],[Дата]])","v":11},"2017-03-13"]
[{"$f":"_xlfn.ISOWEEKNUM(Зразки_унів_фільтр[[#This Row],[Дата]])","v":11},"2017-03-14"]
[{"$f":"_xlfn.ISOWEEKNUM(Зразки_унів_фільтр[[#This Row],[Дата]])","v":11},"2017-03-15"]
[{"$f":"_xlfn.ISOWEEKNUM(Зразки_унів_фільтр[[#This Row],[Дата]])","v":11},"2017-03-16"]
[{"$f":"_xlfn.ISOWEEKNUM(Зразки_унів_фільтр[[#This Row],[Дата]])","v":11},"2017-03-17"]
[{"$f":"_xlfn.ISOWEEKNUM(Зразки_унів_фільтр[[#This Row],[Дата]])","v":11},"2017-03-18"]
[{"$f":"_xlfn.ISOWEEKNUM(Зразки_унів_фільтр[[#This Row],[Дата]])","v":11},"2017-03-19"]
[{"$f":"_xlfn.ISOWEEKNUM(Зразки_унів_фільтр[[#This Row],[Дата]])","v":12},"2017-03-20"]
[{"$f":"_xlfn.ISOWEEKNUM(Зразки_унів_фільтр[[#This Row],[Дата]])","v":12},"2017-03-21"]
[{"$f":"_xlfn.ISOWEEKNUM(Зразки_унів_фільтр[[#This Row],[Дата]])","v":12},"2017-03-22"]
[{"$f":"_xlfn.ISOWEEKNUM(Зразки_унів_фільтр[[#This Row],[Дата]])","v":12},"2017-03-23"]
[{"$f":"_xlfn.ISOWEEKNUM(Зразки_унів_фільтр[[#This Row],[Дата]])","v":12},"2017-03-24"]
[{"$f":"_xlfn.ISOWEEKNUM(Зразки_унів_фільтр[[#This Row],[Дата]])","v":12},"2017-03-25"]
[{"$f":"_xlfn.ISOWEEKNUM(Зразки_унів_фільтр[[#This Row],[Дата]])","v":12},"2017-03-26"]
[{"$f":"_xlfn.ISOWEEKNUM(Зразки_унів_фільтр[[#This Row],[Дата]])","v":13},"2017-03-27"]
[{"$f":"_xlfn.ISOWEEKNUM(Зразки_унів_фільтр[[#This Row],[Дата]])","v":13},"2017-03-28"]
[{"$f":"_xlfn.ISOWEEKNUM(Зразки_унів_фільтр[[#This Row],[Дата]])","v":13},"2017-03-29"]
[{"$f":"_xlfn.ISOWEEKNUM(Зразки_унів_фільтр[[#This Row],[Дата]])","v":13},"2017-03-30"]
[{"$f":"_xlfn.ISOWEEKNUM(Зразки_унів_фільтр[[#This Row],[Дата]])","v":13},"2017-03-31"]
[{"$f":"_xlfn.ISOWEEKNUM(Зразки_унів_фільтр[[#This Row],[Дата]])","v":13},"2017-04-01"]
[{"$f":"_xlfn.ISOWEEKNUM(Зразки_унів_фільтр[[#This Row],[Дата]])","v":13},"2017-04-02"]
[{"$f":"_xlfn.ISOWEEKNUM(Зразки_унів_фільтр[[#This Row],[Дата]])","v":14},"2017-04-03"]
[{"$f":"_xlfn.ISOWEEKNUM(Зразки_унів_фільтр[[#This Row],[Дата]])","v":14},"2017-04-04"]
[{"$f":"_xlfn.ISOWEEKNUM(Зразки_унів_фільтр[[#This Row],[Дата]])","v":14},"2017-04-05"]
[{"$f":"_xlfn.ISOWEEKNUM(Зразки_унів_фільтр[[#This Row],[Дата]])","v":14},"2017-04-06"]
[{"$f":"_xlfn.ISOWEEKNUM(Зразки_унів_фільтр[[#This Row],[Дата]])","v":14},"2017-04-07"]
[{"$f":"_xlfn.ISOWEEKNUM(Зразки_унів_фільтр[[#This Row],[Дата]])","v":14},"2017-04-08"]
[{"$f":"_xlfn.ISOWEEKNUM(Зразки_унів_фільтр[[#This Row],[Дата]])","v":14},"2017-04-09"]
[{"$f":"_xlfn.ISOWEEKNUM(Зразки_унів_фільтр[[#This Row],[Дата]])","v":15},"2017-04-10"]
[{"$f":"_xlfn.ISOWEEKNUM(Зразки_унів_фільтр[[#This Row],[Дата]])","v":15},"2017-04-11"]
[{"$f":"_xlfn.ISOWEEKNUM(Зразки_унів_фільтр[[#This Row],[Дата]])","v":15},"2017-04-12"]
[{"$f":"_xlfn.ISOWEEKNUM(Зразки_унів_фільтр[[#This Row],[Дата]])","v":15},"2017-04-13"]
[{"$f":"_xlfn.ISOWEEKNUM(Зразки_унів_фільтр[[#This Row],[Дата]])","v":15},"2017-04-14"]
[{"$f":"_xlfn.ISOWEEKNUM(Зразки_унів_фільтр[[#This Row],[Дата]])","v":15},"2017-04-15"]
[{"$f":"_xlfn.ISOWEEKNUM(Зразки_унів_фільтр[[#This Row],[Дата]])","v":15},"2017-04-16"]
[{"$f":"_xlfn.ISOWEEKNUM(Зразки_унів_фільтр[[#This Row],[Дата]])","v":16},"2017-04-17"]
[{"$f":"_xlfn.ISOWEEKNUM(Зразки_унів_фільтр[[#This Row],[Дата]])","v":16},"2017-04-18"]
[{"$f":"_xlfn.ISOWEEKNUM(Зразки_унів_фільтр[[#This Row],[Дата]])","v":16},"2017-04-19"]
[{"$f":"_xlfn.ISOWEEKNUM(Зразки_унів_фільтр[[#This Row],[Дата]])","v":16},"2017-04-20"]
[{"$f":"_xlfn.ISOWEEKNUM(Зразки_унів_фільтр[[#This Row],[Дата]])","v":16},"2017-04-21"]
[{"$f":"_xlfn.ISOWEEKNUM(Зразки_унів_фільтр[[#This Row],[Дата]])","v":16},"2017-04-22"]
[{"$f":"_xlfn.ISOWEEKNUM(Зразки_унів_фільтр[[#This Row],[Дата]])","v":16},"2017-04-23"]
[{"$f":"_xlfn.ISOWEEKNUM(Зразки_унів_фільтр[[#This Row],[Дата]])","v":17},"2017-04-24"]
[{"$f":"_xlfn.ISOWEEKNUM(Зразки_унів_фільтр[[#This Row],[Дата]])","v":17},"2017-04-25"]
[{"$f":"_xlfn.ISOWEEKNUM(Зразки_унів_фільтр[[#This Row],[Дата]])","v":17},"2017-04-26"]
[{"$f":"_xlfn.ISOWEEKNUM(Зразки_унів_фільтр[[#This Row],[Дата]])","v":17},"2017-04-27"]
[{"$f":"_xlfn.ISOWEEKNUM(Зразки_унів_фільтр[[#This Row],[Дата]])","v":17},"2017-04-28"]
[{"$f":"_xlfn.ISOWEEKNUM(Зразки_унів_фільтр[[#This Row],[Дата]])","v":17},"2017-04-29"]
[{"$f":"_xlfn.ISOWEEKNUM(Зразки_унів_фільтр[[#This Row],[Дата]])","v":17},"2017-04-30"]
[{"$f":"_xlfn.ISOWEEKNUM(Зразки_унів_фільтр[[#This Row],[Дата]])","v":18},"2017-05-01"]
[{"$f":"_xlfn.ISOWEEKNUM(Зразки_унів_фільтр[[#This Row],[Дата]])","v":18},"2017-05-02"]
[{"$f":"_xlfn.ISOWEEKNUM(Зразки_унів_фільтр[[#This Row],[Дата]])","v":18},"2017-05-03"]
[{"$f":"_xlfn.ISOWEEKNUM(Зразки_унів_фільтр[[#This Row],[Дата]])","v":18},"2017-05-04"]
[{"$f":"_xlfn.ISOWEEKNUM(Зразки_унів_фільтр[[#This Row],[Дата]])","v":18},"2017-05-05"]
[{"$f":"_xlfn.ISOWEEKNUM(Зразки_унів_фільтр[[#This Row],[Дата]])","v":18},"2017-05-06"]
[{"$f":"_xlfn.ISOWEEKNUM(Зразки_унів_фільтр[[#This Row],[Дата]])","v":18},"2017-05-07"]
[{"$f":"_xlfn.ISOWEEKNUM(Зразки_унів_фільтр[[#This Row],[Дата]])","v":19},"2017-05-08"]
[{"$f":"_xlfn.ISOWEEKNUM(Зразки_унів_фільтр[[#This Row],[Дата]])","v":19},"2017-05-09"]
[{"$f":"_xlfn.ISOWEEKNUM(Зразки_унів_фільтр[[#This Row],[Дата]])","v":19},"2017-05-10"]
[{"$f":"_xlfn.ISOWEEKNUM(Зразки_унів_фільтр[[#This Row],[Дата]])","v":19},"2017-05-11"]
[{"$f":"_xlfn.ISOWEEKNUM(Зразки_унів_фільтр[[#This Row],[Дата]])","v":19},"2017-05-12"]
[{"$f":"_xlfn.ISOWEEKNUM(Зразки_унів_фільтр[[#This Row],[Дата]])","v":19},"2017-05-13"]
[{"$f":"_xlfn.ISOWEEKNUM(Зразки_унів_фільтр[[#This Row],[Дата]])","v":19},"2017-05-14"]
[{"$f":"_xlfn.ISOWEEKNUM(Зразки_унів_фільтр[[#This Row],[Дата]])","v":20},"2017-05-15"]
[{"$f":"_xlfn.ISOWEEKNUM(Зразки_унів_фільтр[[#This Row],[Дата]])","v":20},"2017-05-16"]
[{"$f":"_xlfn.ISOWEEKNUM(Зразки_унів_фільтр[[#This Row],[Дата]])","v":20},"2017-05-17"]
[{"$f":"_xlfn.ISOWEEKNUM(Зразки_унів_фільтр[[#This Row],[Дата]])","v":20},"2017-05-18"]
[{"$f":"_xlfn.ISOWEEKNUM(Зразки_унів_фільтр[[#This Row],[Дата]])","v":20},"2017-05-19"]
[{"$f":"_xlfn.ISOWEEKNUM(Зразки_унів_фільтр[[#This Row],[Дата]])","v":20},"2017-05-20"]
[{"$f":"_xlfn.ISOWEEKNUM(Зразки_унів_фільтр[[#This Row],[Дата]])","v":20},"2017-05-21"]
[{"$f":"_xlfn.ISOWEEKNUM(Зразки_унів_фільтр[[#This Row],[Дата]])","v":21},"2017-05-22"]
[{"$f":"_xlfn.ISOWEEKNUM(Зразки_унів_фільтр[[#This Row],[Дата]])","v":21},"2017-05-23"]
[{"$f":"_xlfn.ISOWEEKNUM(Зразки_унів_фільтр[[#This Row],[Дата]])","v":21},"2017-05-24"]
[{"$f":"_xlfn.ISOWEEKNUM(Зразки_унів_фільтр[[#This Row],[Дата]])","v":21},"2017-05-25"]
[{"$f":"_xlfn.ISOWEEKNUM(Зразки_унів_фільтр[[#This Row],[Дата]])","v":21},"2017-05-26"]
[{"$f":"_xlfn.ISOWEEKNUM(Зразки_унів_фільтр[[#This Row],[Дата]])","v":21},"2017-05-27"]
[{"$f":"_xlfn.ISOWEEKNUM(Зразки_унів_фільтр[[#This Row],[Дата]])","v":21},"2017-05-28"]
[{"$f":"_xlfn.ISOWEEKNUM(Зразки_унів_фільтр[[#This Row],[Дата]])","v":22},"2017-05-29"]
[{"$f":"_xlfn.ISOWEEKNUM(Зразки_унів_фільтр[[#This Row],[Дата]])","v":22},"2017-05-30"]
[{"$f":"_xlfn.ISOWEEKNUM(Зразки_унів_фільтр[[#This Row],[Дата]])","v":22},"2017-05-31"]
[{"$f":"_xlfn.ISOWEEKNUM(Зразки_унів_фільтр[[#This Row],[Дата]])","v":22},"2017-06-01"]
[{"$f":"_xlfn.ISOWEEKNUM(Зразки_унів_фільтр[[#This Row],[Дата]])","v":22},"2017-06-02"]
[{"$f":"_xlfn.ISOWEEKNUM(Зразки_унів_фільтр[[#This Row],[Дата]])","v":22},"2017-06-03"]
[{"$f":"_xlfn.ISOWEEKNUM(Зразки_унів_фільтр[[#This Row],[Дата]])","v":22},"2017-06-04"]
[{"$f":"_xlfn.ISOWEEKNUM(Зразки_унів_фільтр[[#This Row],[Дата]])","v":23},"2017-06-05"]
[{"$f":"_xlfn.ISOWEEKNUM(Зразки_унів_фільтр[[#This Row],[Дата]])","v":23},"2017-06-06"]
[{"$f":"_xlfn.ISOWEEKNUM(Зразки_унів_фільтр[[#This Row],[Дата]])","v":23},"2017-06-07"]
[{"$f":"_xlfn.ISOWEEKNUM(Зразки_унів_фільтр[[#This Row],[Дата]])","v":23},"2017-06-08"]
[{"$f":"_xlfn.ISOWEEKNUM(Зразки_унів_фільтр[[#This Row],[Дата]])","v":23},"2017-06-09"]
[{"$f":"_xlfn.ISOWEEKNUM(Зразки_унів_фільтр[[#This Row],[Дата]])","v":23},"2017-06-10"]
[{"$f":"_xlfn.ISOWEEKNUM(Зразки_унів_фільтр[[#This Row],[Дата]])","v":23},"2017-06-11"]
[{"$f":"_xlfn.ISOWEEKNUM(Зразки_унів_фільтр[[#This Row],[Дата]])","v":24},"2017-06-12"]
[{"$f":"_xlfn.ISOWEEKNUM(Зразки_унів_фільтр[[#This Row],[Дата]])","v":24},"2017-06-13"]
[{"$f":"_xlfn.ISOWEEKNUM(Зразки_унів_фільтр[[#This Row],[Дата]])","v":24},"2017-06-14"]
[{"$f":"_xlfn.ISOWEEKNUM(Зразки_унів_фільтр[[#This Row],[Дата]])","v":24},"2017-06-15"]
[{"$f":"_xlfn.ISOWEEKNUM(Зразки_унів_фільтр[[#This Row],[Дата]])","v":24},"2017-06-16"]
[{"$f":"_xlfn.ISOWEEKNUM(Зразки_унів_фільтр[[#This Row],[Дата]])","v":24},"2017-06-17"]
[{"$f":"_xlfn.ISOWEEKNUM(Зразки_унів_фільтр[[#This Row],[Дата]])","v":24},"2017-06-18"]
[{"$f":"_xlfn.ISOWEEKNUM(Зразки_унів_фільтр[[#This Row],[Дата]])","v":25},"2017-06-19"]
[{"$f":"_xlfn.ISOWEEKNUM(Зразки_унів_фільтр[[#This Row],[Дата]])","v":25},"2017-06-20"]
[{"$f":"_xlfn.ISOWEEKNUM(Зразки_унів_фільтр[[#This Row],[Дата]])","v":25},"2017-06-21"]
[{"$f":"_xlfn.ISOWEEKNUM(Зразки_унів_фільтр[[#This Row],[Дата]])","v":25},"2017-06-22"]
[{"$f":"_xlfn.ISOWEEKNUM(Зразки_унів_фільтр[[#This Row],[Дата]])","v":25},"2017-06-23"]
[{"$f":"_xlfn.ISOWEEKNUM(Зразки_унів_фільтр[[#This Row],[Дата]])","v":25},"2017-06-24"]
[{"$f":"_xlfn.ISOWEEKNUM(Зразки_унів_фільтр[[#This Row],[Дата]])","v":25},"2017-06-25"]
[{"$f":"_xlfn.ISOWEEKNUM(Зразки_унів_фільтр[[#This Row],[Дата]])","v":26},"2017-06-26"]
[{"$f":"_xlfn.ISOWEEKNUM(Зразки_унів_фільтр[[#This Row],[Дата]])","v":26},"2017-06-27"]
[{"$f":"_xlfn.ISOWEEKNUM(Зразки_унів_фільтр[[#This Row],[Дата]])","v":26},"2017-06-28"]
[{"$f":"_xlfn.ISOWEEKNUM(Зразки_унів_фільтр[[#This Row],[Дата]])","v":26},"2017-06-29"]
[{"$f":"_xlfn.ISOWEEKNUM(Зразки_унів_фільтр[[#This Row],[Дата]])","v":26},"2017-06-30"]
[{"$f":"_xlfn.ISOWEEKNUM(Зразки_унів_фільтр[[#This Row],[Дата]])","v":26},"2017-07-01"]
[{"$f":"_xlfn.ISOWEEKNUM(Зразки_унів_фільтр[[#This Row],[Дата]])","v":26},"2017-07-02"]
[{"$f":"_xlfn.ISOWEEKNUM(Зразки_унів_фільтр[[#This Row],[Дата]])","v":27},"2017-07-03"]
[{"$f":"_xlfn.ISOWEEKNUM(Зразки_унів_фільтр[[#This Row],[Дата]])","v":27},"2017-07-04"]
[{"$f":"_xlfn.ISOWEEKNUM(Зразки_унів_фільтр[[#This Row],[Дата]])","v":27},"2017-07-05"]
[{"$f":"_xlfn.ISOWEEKNUM(Зразки_унів_фільтр[[#This Row],[Дата]])","v":27},"2017-07-06"]
[{"$f":"_xlfn.ISOWEEKNUM(Зразки_унів_фільтр[[#This Row],[Дата]])","v":27},"2017-07-07"]
[{"$f":"_xlfn.ISOWEEKNUM(Зразки_унів_фільтр[[#This Row],[Дата]])","v":27},"2017-07-08"]
[{"$f":"_xlfn.ISOWEEKNUM(Зразки_унів_фільтр[[#This Row],[Дата]])","v":27},"2017-07-09"]
[{"$f":"_xlfn.ISOWEEKNUM(Зразки_унів_фільтр[[#This Row],[Дата]])","v":28},"2017-07-10"]
[{"$f":"_xlfn.ISOWEEKNUM(Зразки_унів_фільтр[[#This Row],[Дата]])","v":28},"2017-07-11"]
[{"$f":"_xlfn.ISOWEEKNUM(Зразки_унів_фільтр[[#This Row],[Дата]])","v":28},"2017-07-12"]
[{"$f":"_xlfn.ISOWEEKNUM(Зразки_унів_фільтр[[#This Row],[Дата]])","v":28},"2017-07-13"]
[{"$f":"_xlfn.ISOWEEKNUM(Зразки_унів_фільтр[[#This Row],[Дата]])","v":28},"2017-07-14"]
[{"$f":"_xlfn.ISOWEEKNUM(Зразки_унів_фільтр[[#This Row],[Дата]])","v":28},"2017-07-15"]
[{"$f":"_xlfn.ISOWEEKNUM(Зразки_унів_фільтр[[#This Row],[Дата]])","v":28},"2017-07-16"]
[{"$f":"_xlfn.ISOWEEKNUM(Зразки_унів_фільтр[[#This Row],[Дата]])","v":29},"2017-07-17"]
[{"$f":"_xlfn.ISOWEEKNUM(Зразки_унів_фільтр[[#This Row],[Дата]])","v":29},"2017-07-18"]
[{"$f":"_xlfn.ISOWEEKNUM(Зразки_унів_фільтр[[#This Row],[Дата]])","v":29},"2017-07-19"]
[{"$f":"_xlfn.ISOWEEKNUM(Зразки_унів_фільтр[[#This Row],[Дата]])","v":29},"2017-07-20"]
[{"$f":"_xlfn.ISOWEEKNUM(Зразки_унів_фільтр[[#This Row],[Дата]])","v":29},"2017-07-21"]
[{"$f":"_xlfn.ISOWEEKNUM(Зразки_унів_фільтр[[#This Row],[Дата]])","v":29},"2017-07-22"]
[{"$f":"_xlfn.ISOWEEKNUM(Зразки_унів_фільтр[[#This Row],[Дата]])","v":29},"2017-07-23"]
[{"$f":"_xlfn.ISOWEEKNUM(Зразки_унів_фільтр[[#This Row],[Дата]])","v":30},"2017-07-24"]
[{"$f":"_xlfn.ISOWEEKNUM(Зразки_унів_фільтр[[#This Row],[Дата]])","v":30},"2017-07-25"]
[{"$f":"_xlfn.ISOWEEKNUM(Зразки_унів_фільтр[[#This Row],[Дата]])","v":30},"2017-07-26"]
[{"$f":"_xlfn.ISOWEEKNUM(Зразки_унів_фільтр[[#This Row],[Дата]])","v":30},"2017-07-27"]
[{"$f":"_xlfn.ISOWEEKNUM(Зразки_унів_фільтр[[#This Row],[Дата]])","v":30},"2017-07-28"]
[{"$f":"_xlfn.ISOWEEKNUM(Зразки_унів_фільтр[[#This Row],[Дата]])","v":30},"2017-07-29"]
[{"$f":"_xlfn.ISOWEEKNUM(Зразки_унів_фільтр[[#This Row],[Дата]])","v":30},"2017-07-30"]
[{"$f":"_xlfn.ISOWEEKNUM(Зразки_унів_фільтр[[#This Row],[Дата]])","v":31},"2017-07-31"]
[{"$f":"_xlfn.ISOWEEKNUM(Зразки_унів_фільтр[[#This Row],[Дата]])","v":31},"2017-08-01"]
[{"$f":"_xlfn.ISOWEEKNUM(Зразки_унів_фільтр[[#This Row],[Дата]])","v":31},"2017-08-02"]
[{"$f":"_xlfn.ISOWEEKNUM(Зразки_унів_фільтр[[#This Row],[Дата]])","v":31},"2017-08-03"]
[{"$f":"_xlfn.ISOWEEKNUM(Зразки_унів_фільтр[[#This Row],[Дата]])","v":31},"2017-08-04"]
[{"$f":"_xlfn.ISOWEEKNUM(Зразки_унів_фільтр[[#This Row],[Дата]])","v":31},"2017-08-05"]
[{"$f":"_xlfn.ISOWEEKNUM(Зразки_унів_фільтр[[#This Row],[Дата]])","v":31},"2017-08-06"]
[{"$f":"_xlfn.ISOWEEKNUM(Зразки_унів_фільтр[[#This Row],[Дата]])","v":32},"2017-08-07"]
[{"$f":"_xlfn.ISOWEEKNUM(Зразки_унів_фільтр[[#This Row],[Дата]])","v":32},"2017-08-08"]
[{"$f":"_xlfn.ISOWEEKNUM(Зразки_унів_фільтр[[#This Row],[Дата]])","v":32},"2017-08-09"]
[{"$f":"_xlfn.ISOWEEKNUM(Зразки_унів_фільтр[[#This Row],[Дата]])","v":32},"2017-08-10"]
[{"$f":"_xlfn.ISOWEEKNUM(Зразки_унів_фільтр[[#This Row],[Дата]])","v":32},"2017-08-11"]
[{"$f":"_xlfn.ISOWEEKNUM(Зразки_унів_фільтр[[#This Row],[Дата]])","v":32},"2017-08-12"]
[{"$f":"_xlfn.ISOWEEKNUM(Зразки_унів_фільтр[[#This Row],[Дата]])","v":32},"2017-08-13"]
[{"$f":"_xlfn.ISOWEEKNUM(Зразки_унів_фільтр[[#This Row],[Дата]])","v":33},"2017-08-14"]
[{"$f":"_xlfn.ISOWEEKNUM(Зразки_унів_фільтр[[#This Row],[Дата]])","v":33},"2017-08-15"]
[{"$f":"_xlfn.ISOWEEKNUM(Зразки_унів_фільтр[[#This Row],[Дата]])","v":33},"2017-08-16"]
[{"$f":"_xlfn.ISOWEEKNUM(Зразки_унів_фільтр[[#This Row],[Дата]])","v":33},"2017-08-17"]
[{"$f":"_xlfn.ISOWEEKNUM(Зразки_унів_фільтр[[#This Row],[Дата]])","v":33},"2017-08-18"]
[{"$f":"_xlfn.ISOWEEKNUM(Зразки_унів_фільтр[[#This Row],[Дата]])","v":33},"2017-08-19"]
[{"$f":"_xlfn.ISOWEEKNUM(Зразки_унів_фільтр[[#This Row],[Дата]])","v":33},"2017-08-20"]
[{"$f":"_xlfn.ISOWEEKNUM(Зразки_унів_фільтр[[#This Row],[Дата]])","v":34},"2017-08-21"]
[{"$f":"_xlfn.ISOWEEKNUM(Зразки_унів_фільтр[[#This Row],[Дата]])","v":34},"2017-08-22"]
[{"$f":"_xlfn.ISOWEEKNUM(Зразки_унів_фільтр[[#This Row],[Дата]])","v":34},"2017-08-23"]
[{"$f":"_xlfn.ISOWEEKNUM(Зразки_унів_фільтр[[#This Row],[Дата]])","v":34},"2017-08-24"]
[{"$f":"_xlfn.ISOWEEKNUM(Зразки_унів_фільтр[[#This Row],[Дата]])","v":34},"2017-08-25"]
[{"$f":"_xlfn.ISOWEEKNUM(Зразки_унів_фільтр[[#This Row],[Дата]])","v":34},"2017-08-26"]
[{"$f":"_xlfn.ISOWEEKNUM(Зразки_унів_фільтр[[#This Row],[Дата]])","v":34},"2017-08-27"]
[{"$f":"_xlfn.ISOWEEKNUM(Зразки_унів_фільтр[[#This Row],[Дата]])","v":35},"2017-08-28"]
[{"$f":"_xlfn.ISOWEEKNUM(Зразки_унів_фільтр[[#This Row],[Дата]])","v":35},"2017-08-29"]
[{"$f":"_xlfn.ISOWEEKNUM(Зразки_унів_фільтр[[#This Row],[Дата]])","v":35},"2017-08-30"]
[{"$f":"_xlfn.ISOWEEKNUM(Зразки_унів_фільтр[[#This Row],[Дата]])","v":35},"2017-08-31"]
[{"$f":"_xlfn.ISOWEEKNUM(Зразки_унів_фільтр[[#This Row],[Дата]])","v":35},"2017-09-01"]
[{"$f":"_xlfn.ISOWEEKNUM(Зразки_унів_фільтр[[#This Row],[Дата]])","v":35},"2017-09-02"]
[{"$f":"_xlfn.ISOWEEKNUM(Зразки_унів_фільтр[[#This Row],[Дата]])","v":35},"2017-09-03"]
[{"$f":"_xlfn.ISOWEEKNUM(Зразки_унів_фільтр[[#This Row],[Дата]])","v":36},"2017-09-04"]
[{"$f":"_xlfn.ISOWEEKNUM(Зразки_унів_фільтр[[#This Row],[Дата]])","v":36},"2017-09-05"]
[{"$f":"_xlfn.ISOWEEKNUM(Зразки_унів_фільтр[[#This Row],[Дата]])","v":36},"2017-09-06"]
[{"$f":"_xlfn.ISOWEEKNUM(Зразки_унів_фільтр[[#This Row],[Дата]])","v":36},"2017-09-07"]
[{"$f":"_xlfn.ISOWEEKNUM(Зразки_унів_фільтр[[#This Row],[Дата]])","v":36},"2017-09-08"]
[{"$f":"_xlfn.ISOWEEKNUM(Зразки_унів_фільтр[[#This Row],[Дата]])","v":36},"2017-09-09"]
[{"$f":"_xlfn.ISOWEEKNUM(Зразки_унів_фільтр[[#This Row],[Дата]])","v":36},"2017-09-10"]
[{"$f":"_xlfn.ISOWEEKNUM(Зразки_унів_фільтр[[#This Row],[Дата]])","v":37},"2017-09-11"]
[{"$f":"_xlfn.ISOWEEKNUM(Зразки_унів_фільтр[[#This Row],[Дата]])","v":37},"2017-09-12"]
[{"$f":"_xlfn.ISOWEEKNUM(Зразки_унів_фільтр[[#This Row],[Дата]])","v":37},"2017-09-13"]
[{"$f":"_xlfn.ISOWEEKNUM(Зразки_унів_фільтр[[#This Row],[Дата]])","v":37},"2017-09-14"]
[{"$f":"_xlfn.ISOWEEKNUM(Зразки_унів_фільтр[[#This Row],[Дата]])","v":37},"2017-09-15"]
[{"$f":"_xlfn.ISOWEEKNUM(Зразки_унів_фільтр[[#This Row],[Дата]])","v":37},"2017-09-16"]
[{"$f":"_xlfn.ISOWEEKNUM(Зразки_унів_фільтр[[#This Row],[Дата]])","v":37},"2017-09-17"]
[{"$f":"_xlfn.ISOWEEKNUM(Зразки_унів_фільтр[[#This Row],[Дата]])","v":38},"2017-09-18"]
[{"$f":"_xlfn.ISOWEEKNUM(Зразки_унів_фільтр[[#This Row],[Дата]])","v":38},"2017-09-19"]
[{"$f":"_xlfn.ISOWEEKNUM(Зразки_унів_фільтр[[#This Row],[Дата]])","v":38},"2017-09-20"]
[{"$f":"_xlfn.ISOWEEKNUM(Зразки_унів_фільтр[[#This Row],[Дата]])","v":38},"2017-09-21"]
[{"$f":"_xlfn.ISOWEEKNUM(Зразки_унів_фільтр[[#This Row],[Дата]])","v":38},"2017-09-22"]
[{"$f":"_xlfn.ISOWEEKNUM(Зразки_унів_фільтр[[#This Row],[Дата]])","v":38},"2017-09-23"]
[{"$f":"_xlfn.ISOWEEKNUM(Зразки_унів_фільтр[[#This Row],[Дата]])","v":38},"2017-09-24"]
[{"$f":"_xlfn.ISOWEEKNUM(Зразки_унів_фільтр[[#This Row],[Дата]])","v":39},"2017-09-25"]
[{"$f":"_xlfn.ISOWEEKNUM(Зразки_унів_фільтр[[#This Row],[Дата]])","v":39},"2017-09-26"]
[{"$f":"_xlfn.ISOWEEKNUM(Зразки_унів_фільтр[[#This Row],[Дата]])","v":39},"2017-09-27"]
[{"$f":"_xlfn.ISOWEEKNUM(Зразки_унів_фільтр[[#This Row],[Дата]])","v":39},"2017-09-28"]
[{"$f":"_xlfn.ISOWEEKNUM(Зразки_унів_фільтр[[#This Row],[Дата]])","v":39},"2017-09-29"]
[{"$f":"_xlfn.ISOWEEKNUM(Зразки_унів_фільтр[[#This Row],[Дата]])","v":39},"2017-09-30"]
[{"$f":"_xlfn.ISOWEEKNUM(Зразки_унів_фільтр[[#This Row],[Дата]])","v":39},"2017-10-01"]
[{"$f":"_xlfn.ISOWEEKNUM(Зразки_унів_фільтр[[#This Row],[Дата]])","v":40},"2017-10-02"]
[{"$f":"_xlfn.ISOWEEKNUM(Зразки_унів_фільтр[[#This Row],[Дата]])","v":40},"2017-10-03"]
[{"$f":"_xlfn.ISOWEEKNUM(Зразки_унів_фільтр[[#This Row],[Дата]])","v":40},"2017-10-04"]
[{"$f":"_xlfn.ISOWEEKNUM(Зразки_унів_фільтр[[#This Row],[Дата]])","v":40},"2017-10-05"]
[{"$f":"_xlfn.ISOWEEKNUM(Зразки_унів_фільтр[[#This Row],[Дата]])","v":40},"2017-10-06"]
[{"$f":"_xlfn.ISOWEEKNUM(Зразки_унів_фільтр[[#This Row],[Дата]])","v":40},"2017-10-07"]
[{"$f":"_xlfn.ISOWEEKNUM(Зразки_унів_фільтр[[#This Row],[Дата]])","v":40},"2017-10-08"]
[{"$f":"_xlfn.ISOWEEKNUM(Зразки_унів_фільтр[[#This Row],[Дата]])","v":41},"2017-10-09"]
[{"$f":"_xlfn.ISOWEEKNUM(Зразки_унів_фільтр[[#This Row],[Дата]])","v":41},"2017-10-10"]
[{"$f":"_xlfn.ISOWEEKNUM(Зразки_унів_фільтр[[#This Row],[Дата]])","v":41},"2017-10-11"]
[{"$f":"_xlfn.ISOWEEKNUM(Зразки_унів_фільтр[[#This Row],[Дата]])","v":41},"2017-10-12"]
[{"$f":"_xlfn.ISOWEEKNUM(Зразки_унів_фільтр[[#This Row],[Дата]])","v":41},"2017-10-13"]
[{"$f":"_xlfn.ISOWEEKNUM(Зразки_унів_фільтр[[#This Row],[Дата]])","v":41},"2017-10-14"]
[{"$f":"_xlfn.ISOWEEKNUM(Зразки_унів_фільтр[[#This Row],[Дата]])","v":41},"2017-10-15"]
[{"$f":"_xlfn.ISOWEEKNUM(Зразки_унів_фільтр[[#This Row],[Дата]])","v":42},"2017-10-16"]
[{"$f":"_xlfn.ISOWEEKNUM(Зразки_унів_фільтр[[#This Row],[Дата]])","v":42},"2017-10-17"]
[{"$f":"_xlfn.ISOWEEKNUM(Зразки_унів_фільтр[[#This Row],[Дата]])","v":42},"2017-10-18"]
[{"$f":"_xlfn.ISOWEEKNUM(Зразки_унів_фільтр[[#This Row],[Дата]])","v":42},"2017-10-19"]
[{"$f":"_xlfn.ISOWEEKNUM(Зразки_унів_фільтр[[#This Row],[Дата]])","v":42},"2017-10-20"]
[{"$f":"_xlfn.ISOWEEKNUM(Зразки_унів_фільтр[[#This Row],[Дата]])","v":42},"2017-10-21"]
[{"$f":"_xlfn.ISOWEEKNUM(Зразки_унів_фільтр[[#This Row],[Дата]])","v":42},"2017-10-22"]
[{"$f":"_xlfn.ISOWEEKNUM(Зразки_унів_фільтр[[#This Row],[Дата]])","v":43},"2017-10-23"]
[{"$f":"_xlfn.ISOWEEKNUM(Зразки_унів_фільтр[[#This Row],[Дата]])","v":43},"2017-10-24"]
[{"$f":"_xlfn.ISOWEEKNUM(Зразки_унів_фільтр[[#This Row],[Дата]])","v":43},"2017-10-25"]
[{"$f":"_xlfn.ISOWEEKNUM(Зразки_унів_фільтр[[#This Row],[Дата]])","v":43},"2017-10-26"]
[{"$f":"_xlfn.ISOWEEKNUM(Зразки_унів_фільтр[[#This Row],[Дата]])","v":43},"2017-10-27"]
[{"$f":"_xlfn.ISOWEEKNUM(Зразки_унів_фільтр[[#This Row],[Дата]])","v":43},"2017-10-28"]
[{"$f":"_xlfn.ISOWEEKNUM(Зразки_унів_фільтр[[#This Row],[Дата]])","v":43},"2017-10-29"]
[{"$f":"_xlfn.ISOWEEKNUM(Зразки_унів_фільтр[[#This Row],[Дата]])","v":44},"2017-10-30"]
[{"$f":"_xlfn.ISOWEEKNUM(Зразки_унів_фільтр[[#This Row],[Дата]])","v":44},"2017-10-31"]
[{"$f":"_xlfn.ISOWEEKNUM(Зразки_унів_фільтр[[#This Row],[Дата]])","v":44},"2017-11-01"]
[{"$f":"_xlfn.ISOWEEKNUM(Зразки_унів_фільтр[[#This Row],[Дата]])","v":44},"2017-11-02"]
[{"$f":"_xlfn.ISOWEEKNUM(Зразки_унів_фільтр[[#This Row],[Дата]])","v":44},"2017-11-03"]
[{"$f":"_xlfn.ISOWEEKNUM(Зразки_унів_фільтр[[#This Row],[Дата]])","v":44},"2017-11-04"]
[{"$f":"_xlfn.ISOWEEKNUM(Зразки_унів_фільтр[[#This Row],[Дата]])","v":44},"2017-11-05"]
[{"$f":"_xlfn.ISOWEEKNUM(Зразки_унів_фільтр[[#This Row],[Дата]])","v":45},"2017-11-06"]
[{"$f":"_xlfn.ISOWEEKNUM(Зразки_унів_фільтр[[#This Row],[Дата]])","v":45},"2017-11-07"]
[{"$f":"_xlfn.ISOWEEKNUM(Зразки_унів_фільтр[[#This Row],[Дата]])","v":45},"2017-11-08"]
[{"$f":"_xlfn.ISOWEEKNUM(Зразки_унів_фільтр[[#This Row],[Дата]])","v":45},"2017-11-09"]
[{"$f":"_xlfn.ISOWEEKNUM(Зразки_унів_фільтр[[#This Row],[Дата]])","v":45},"2017-11-10"]
[{"$f":"_xlfn.ISOWEEKNUM(Зразки_унів_фільтр[[#This Row],[Дата]])","v":45},"2017-11-11"]
[{"$f":"_xlfn.ISOWEEKNUM(Зразки_унів_фільтр[[#This Row],[Дата]])","v":45},"2017-11-12"]
[{"$f":"_xlfn.ISOWEEKNUM(Зразки_унів_фільтр[[#This Row],[Дата]])","v":46},"2017-11-13"]
[{"$f":"_xlfn.ISOWEEKNUM(Зразки_унів_фільтр[[#This Row],[Дата]])","v":46},"2017-11-14"]
[{"$f":"_xlfn.ISOWEEKNUM(Зразки_унів_фільтр[[#This Row],[Дата]])","v":46},"2017-11-15"]
[{"$f":"_xlfn.ISOWEEKNUM(Зразки_унів_фільтр[[#This Row],[Дата]])","v":46},"2017-11-16"]
[{"$f":"_xlfn.ISOWEEKNUM(Зразки_унів_фільтр[[#This Row],[Дата]])","v":46},"2017-11-17"]
[{"$f":"_xlfn.ISOWEEKNUM(Зразки_унів_фільтр[[#This Row],[Дата]])","v":46},"2017-11-18"]
[{"$f":"_xlfn.ISOWEEKNUM(Зразки_унів_фільтр[[#This Row],[Дата]])","v":46},"2017-11-19"]
[{"$f":"_xlfn.ISOWEEKNUM(Зразки_унів_фільтр[[#This Row],[Дата]])","v":47},"2017-11-20"]
[{"$f":"_xlfn.ISOWEEKNUM(Зразки_унів_фільтр[[#This Row],[Дата]])","v":47},"2017-11-21"]
[{"$f":"_xlfn.ISOWEEKNUM(Зразки_унів_фільтр[[#This Row],[Дата]])","v":47},"2017-11-22"]
[{"$f":"_xlfn.ISOWEEKNUM(Зразки_унів_фільтр[[#This Row],[Дата]])","v":47},"2017-11-23"]
[{"$f":"_xlfn.ISOWEEKNUM(Зразки_унів_фільтр[[#This Row],[Дата]])","v":47},"2017-11-24"]
[{"$f":"_xlfn.ISOWEEKNUM(Зразки_унів_фільтр[[#This Row],[Дата]])","v":47},"2017-11-25"]
[{"$f":"_xlfn.ISOWEEKNUM(Зразки_унів_фільтр[[#This Row],[Дата]])","v":47},"2017-11-26"]
[{"$f":"_xlfn.ISOWEEKNUM(Зразки_унів_фільтр[[#This Row],[Дата]])","v":48},"2017-11-27"]
[{"$f":"_xlfn.ISOWEEKNUM(Зразки_унів_фільтр[[#This Row],[Дата]])","v":48},"2017-11-28"]
[{"$f":"_xlfn.ISOWEEKNUM(Зразки_унів_фільтр[[#This Row],[Дата]])","v":48},"2017-11-29"]
[{"$f":"_xlfn.ISOWEEKNUM(Зразки_унів_фільтр[[#This Row],[Дата]])","v":48},"2017-11-30"]
[{"$f":"_xlfn.ISOWEEKNUM(Зразки_унів_фільтр[[#This Row],[Дата]])","v":48},"2017-12-01"]
[{"$f":"_xlfn.ISOWEEKNUM(Зразки_унів_фільтр[[#This Row],[Дата]])","v":48},"2017-12-02"]
[{"$f":"_xlfn.ISOWEEKNUM(Зразки_унів_фільтр[[#This Row],[Дата]])","v":48},"2017-12-03"]
[{"$f":"_xlfn.ISOWEEKNUM(Зразки_унів_фільтр[[#This Row],[Дата]])","v":49},"2017-12-04"]
[{"$f":"_xlfn.ISOWEEKNUM(Зразки_унів_фільтр[[#This Row],[Дата]])","v":49},"2017-12-05"]
[{"$f":"_xlfn.ISOWEEKNUM(Зразки_унів_фільтр[[#This Row],[Дата]])","v":49},"2017-12-06"]
[{"$f":"_xlfn.ISOWEEKNUM(Зразки_унів_фільтр[[#This Row],[Дата]])","v":49},"2017-12-07"]
[{"$f":"_xlfn.ISOWEEKNUM(Зразки_унів_фільтр[[#This Row],[Дата]])","v":49},"2017-12-08"]
[{"$f":"_xlfn.ISOWEEKNUM(Зразки_унів_фільтр[[#This Row],[Дата]])","v":49},"2017-12-09"]
[{"$f":"_xlfn.ISOWEEKNUM(Зразки_унів_фільтр[[#This Row],[Дата]])","v":49},"2017-12-10"]
[{"$f":"_xlfn.ISOWEEKNUM(Зразки_унів_фільтр[[#This Row],[Дата]])","v":50},"2017-12-11"]
[{"$f":"_xlfn.ISOWEEKNUM(Зразки_унів_фільтр[[#This Row],[Дата]])","v":50},"2017-12-12"]
[{"$f":"_xlfn.ISOWEEKNUM(Зразки_унів_фільтр[[#This Row],[Дата]])","v":50},"2017-12-13"]
[{"$f":"_xlfn.ISOWEEKNUM(Зразки_унів_фільтр[[#This Row],[Дата]])","v":50},"2017-12-14"]
[{"$f":"_xlfn.ISOWEEKNUM(Зразки_унів_фільтр[[#This Row],[Дата]])","v":50},"2017-12-15"]
[{"$f":"_xlfn.ISOWEEKNUM(Зразки_унів_фільтр[[#This Row],[Дата]])","v":50},"2017-12-16"]
[{"$f":"_xlfn.ISOWEEKNUM(Зразки_унів_фільтр[[#This Row],[Дата]])","v":50},"2017-12-17"]
[{"$f":"_xlfn.ISOWEEKNUM(Зразки_унів_фільтр[[#This Row],[Дата]])","v":51},"2017-12-18"]
[{"$f":"_xlfn.ISOWEEKNUM(Зразки_унів_фільтр[[#This Row],[Дата]])","v":51},"2017-12-19"]
[{"$f":"_xlfn.ISOWEEKNUM(Зразки_унів_фільтр[[#This Row],[Дата]])","v":51},"2017-12-20"]
[{"$f":"_xlfn.ISOWEEKNUM(Зразки_унів_фільтр[[#This Row],[Дата]])","v":51},"2017-12-21"]
[{"$f":"_xlfn.ISOWEEKNUM(Зразки_унів_фільтр[[#This Row],[Дата]])","v":51},"2017-12-22"]
[{"$f":"_xlfn.ISOWEEKNUM(Зразки_унів_фільтр[[#This Row],[Дата]])","v":51},"2017-12-23"]
[{"$f":"_xlfn.ISOWEEKNUM(Зразки_унів_фільтр[[#This Row],[Дата]])","v":51},"2017-12-24"]
[{"$f":"_xlfn.ISOWEEKNUM(Зразки_унів_фільтр[[#This Row],[Дата]])","v":52},"2017-12-25"]
[{"$f":"_xlfn.ISOWEEKNUM(Зразки_унів_фільтр[[#This Row],[Дата]])","v":52},"2017-12-26"]
[{"$f":"_xlfn.ISOWEEKNUM(Зразки_унів_фільтр[[#This Row],[Дата]])","v":52},"2017-12-27"]
[{"$f":"_xlfn.ISOWEEKNUM(Зразки_унів_фільтр[[#This Row],[Дата]])","v":52},"2017-12-28"]
[{"$f":"_xlfn.ISOWEEKNUM(Зразки_унів_фільтр[[#This Row],[Дата]])","v":52},"2017-12-29"]
[{"$f":"_xlfn.ISOWEEKNUM(Зразки_унів_фільтр[[#This Row],[Дата]])","v":52},"2017-12-30"]
[{"$f":"_xlfn.ISOWEEKNUM(Зразки_унів_фільтр[[#This Row],[Дата]])","v":52},"2017-12-31"]
[{"$f":"_xlfn.ISOWEEKNUM(Зразки_унів_фільтр[[#This Row],[Дата]])","v":1},"2018-01-01"]
[{"$f":"_xlfn.ISOWEEKNUM(Зразки_унів_фільтр[[#This Row],[Дата]])","v":1},"2018-01-02"]
[{"$f":"_xlfn.ISOWEEKNUM(Зразки_унів_фільтр[[#This Row],[Дата]])","v":1},"2018-01-03"]
[{"$f":"_xlfn.ISOWEEKNUM(Зразки_унів_фільтр[[#This Row],[Дата]])","v":1},"2018-01-04"]
[{"$f":"_xlfn.ISOWEEKNUM(Зразки_унів_фільтр[[#This Row],[Дата]])","v":1},"2018-01-05"]
[{"$f":"_xlfn.ISOWEEKNUM(Зразки_унів_фільтр[[#This Row],[Дата]])","v":1},"2018-01-06"]
[{"$f":"_xlfn.ISOWEEKNUM(Зразки_унів_фільтр[[#This Row],[Дата]])","v":1},"2018-01-07"]
[{"$f":"_xlfn.ISOWEEKNUM(Зразки_унів_фільтр[[#This Row],[Дата]])","v":2},"2018-01-08"]
[{"$f":"_xlfn.ISOWEEKNUM(Зразки_унів_фільтр[[#This Row],[Дата]])","v":2},"2018-01-09"]
[{"$f":"_xlfn.ISOWEEKNUM(Зразки_унів_фільтр[[#This Row],[Дата]])","v":2},"2018-01-10"]
[{"$f":"_xlfn.ISOWEEKNUM(Зразки_унів_фільтр[[#This Row],[Дата]])","v":2},"2018-01-11"]
[{"$f":"_xlfn.ISOWEEKNUM(Зразки_унів_фільтр[[#This Row],[Дата]])","v":2},"2018-01-12"]
[{"$f":"_xlfn.ISOWEEKNUM(Зразки_унів_фільтр[[#This Row],[Дата]])","v":2},"2018-01-13"]
[{"$f":"_xlfn.ISOWEEKNUM(Зразки_унів_фільтр[[#This Row],[Дата]])","v":2},"2018-01-14"]
[{"$f":"_xlfn.ISOWEEKNUM(Зразки_унів_фільтр[[#This Row],[Дата]])","v":3},"2018-01-15"]
[{"$f":"_xlfn.ISOWEEKNUM(Зразки_унів_фільтр[[#This Row],[Дата]])","v":3},"2018-01-16"]
[{"$f":"_xlfn.ISOWEEKNUM(Зразки_унів_фільтр[[#This Row],[Дата]])","v":3},"2018-01-17"]
[{"$f":"_xlfn.ISOWEEKNUM(Зразки_унів_фільтр[[#This Row],[Дата]])","v":3},"2018-01-18"]
[{"$f":"_xlfn.ISOWEEKNUM(Зразки_унів_фільтр[[#This Row],[Дата]])","v":3},"2018-01-19"]
[{"$f":"_xlfn.ISOWEEKNUM(Зразки_унів_фільтр[[#This Row],[Дата]])","v":3},"2018-01-20"]
[{"$f":"_xlfn.ISOWEEKNUM(Зразки_унів_фільтр[[#This Row],[Дата]])","v":3},"2018-01-21"]
[{"$f":"_xlfn.ISOWEEKNUM(Зразки_унів_фільтр[[#This Row],[Дата]])","v":4},"2018-01-22"]
[{"$f":"_xlfn.ISOWEEKNUM(Зразки_унів_фільтр[[#This Row],[Дата]])","v":4},"2018-01-23"]
[{"$f":"_xlfn.ISOWEEKNUM(Зразки_унів_фільтр[[#This Row],[Дата]])","v":4},"2018-01-24"]
[{"$f":"_xlfn.ISOWEEKNUM(Зразки_унів_фільтр[[#This Row],[Дата]])","v":4},"2018-01-25"]
[{"$f":"_xlfn.ISOWEEKNUM(Зразки_унів_фільтр[[#This Row],[Дата]])","v":4},"2018-01-26"]
[{"$f":"_xlfn.ISOWEEKNUM(Зразки_унів_фільтр[[#This Row],[Дата]])","v":4},"2018-01-27"]
[{"$f":"_xlfn.ISOWEEKNUM(Зразки_унів_фільтр[[#This Row],[Дата]])","v":4},"2018-01-28"]
[{"$f":"_xlfn.ISOWEEKNUM(Зразки_унів_фільтр[[#This Row],[Дата]])","v":5},"2018-01-29"]

{"sheet":"tehn","index":1,"n_rows":15,"n_cols":8,"rows_kept":15,"cut":false,"hidden":false,"merged":[]}
["Фрукты","Иванов",null,"Запланировано",null,"Винницкая",null,"АБВ"]
["Абрикос","Петров",null,"Выполнено",null,"Днепропетровская",null,"ГДЕ"]
["Банан","Сидоров",null,null,null,"Харьковская",null,"ЖЗИ"]
["Слива","Николаев",null,null,null,"Херсонская",null,"КЛМ"]
["Виноград",null,"Установление партнерских ",null,null,"Хмельницкая",null,"НОП"]
["Картофель",null,"Эксперимент",null,null,"Черкасская",null,"РСТ"]
["Помидор",null,"Усовершенствование технологий",null,null,"Черновецкая",null,"УФХ"]
["Морковь",null,null,null,null,"Черниговская",null,"Агропродукт"]
["Свекла",null,null,null,null,"Приднестровье",null,"Агроконсалтинг"]
["Вишня"," ",null,null,null,null,null,"Агромолоко"]
["Смородина",null,null,null,null,null,null,"Фермерские хозяйства"]
["Огурец",null,null,null,null,null,null,"Агропрод"]
["Ананас",null,null,null,null,null,null,"Агросоюз"]
["Хурма",null,null,null,null,null,null,"Агрофирма"]
["Яблоко"]